bitfinex/quotes_SOLUSD_20241103
["timestamp","ask_amount","ask_price","bid_price","bid_amount"]
[1730617872459,14.31375142,163.78,163.73,8.20805142]
[1730617873073,14.31375142,163.78,163.72,8.20805142]
[1730617874905,14.31375142,163.78,163.73,6.1076]
[1730617875564,14.31375142,163.78,163.73,21.3766]
[1730617877469,8.20805142,163.77,163.73,21.3766]
[1730617878564,14.31375142,163.78,163.73,21.3766]
[1730617878886,8.20805142,163.77,163.73,21.3766]
[1730617880586,14.31375142,163.78,163.73,21.3766]
[1730617880889,8.20805142,163.78,163.73,29.58465142]
[1730617881775,29.50045142,163.79,163.73,29.58465142]
[1730617882168,23.39505142,163.79,163.73,29.58465142]
[1730617882369,8.20805142,163.81,163.76,8.20805142]
[1730617882589,14.31235142,163.82,163.76,8.20805142]
[1730617883492,8.20805142,163.81,163.76,15.2656]
[1730617884589,8.20805142,163.81,163.76,21.372]
[1730617884783,8.20805142,163.81,163.76,29.58005142]
[1730617886988,14.31235142,163.82,163.76,29.58005142]
[1730617887383,8.20805142,163.81,163.76,29.58005142]
[1730617889583,8.20805142,163.81,163.76,15.2656]
[1730617892195,8.20805142,163.8,163.76,15.2656]
[1730617892380,8.20805142,163.8,163.76,21.372]
[1730617893696,8.20805142,163.8,163.76,15.2656]
[1730617899682,8.20805142,163.81,163.76,23.47365142]
[1730617900602,8.20805142,163.81,163.76,15.2656]
[1730617902297,8.20805142,163.82,163.76,29.58005142]
[1730617902495,8.20805142,163.81,163.76,29.58005142]
[1730617903881,8.20805142,163.81,163.76,15.2656]
[1730617904585,8.20805142,163.81,163.76,23.47365142]
[1730617904990,8.20805142,163.81,163.76,29.58005142]
[1730617907497,8.20805142,163.82,163.76,29.58005142]
[1730617907809,30.96075142,163.83,163.77,8.20805142]
[1730617908890,8.20805142,163.82,163.76,23.47365142]
[1730617909309,8.20805142,163.82,163.76,29.58005142]
[1730617910310,8.20805142,163.82,163.77,8.20805142]
[1730617911714,8.20805142,163.82,163.78,6.1057]
[1730617912709,8.20805142,163.84,163.78,29.57805142]
[1730617912914,16.3195,163.87,163.83,8.20805142]
[1730617913117,8.20805142,163.9,163.84,8.20805142]
[1730617913490,8.20805142,163.89,163.84,8.20805142]
[1730617914192,8.20805142,163.89,163.85,6.1031]
[1730617914808,8.20805142,163.88,163.85,6.1031]
[1730617915495,8.20805142,163.88,163.84,15.2584]
[1730617916403,8.20805142,163.89,163.84,15.2584]
[1730617917415,8.20805142,163.9,163.84,29.56995142]
[1730617917593,8.20805142,163.89,163.84,21.3619]
[1730617917794,8.20805142,163.88,163.84,21.3619]
[1730617918517,8.20805142,163.88,163.84,15.2584]
[1730617920106,8.20805142,163.88,163.84,21.3619]
[1730617920304,8.20805142,163.89,163.84,21.3619]
[1730617920803,8.20805142,163.88,163.84,21.3619]
[1730617922821,8.20805142,163.88,163.82,8.20805142]
[1730617922991,8.20805142,163.86,163.81,8.20805142]
[1730617923997,8.20805142,163.87,163.82,21.3648]
[1730617925606,8.20805142,163.85,163.82,21.3648]
[1730617927522,8.20805142,163.84,163.79,14.55155142]
[1730617927711,8.20805142,163.81,163.79,15.263]
[1730617928325,8.20805142,163.8,163.76,21.3722]
[1730617928617,8.20805142,163.79,163.76,21.3722]
[1730617929096,8.20805142,163.8,163.76,21.3722]
[1730617930519,8.20805142,163.79,163.76,21.3722]
[1730617930721,8.20805142,163.78,163.76,21.3722]
[1730617931023,8.20805142,163.77,163.76,15.2658]
[1730617931605,8.20805142,163.77,163.72,21.3778]
[1730617932505,8.20805142,163.77,163.72,29.58585142]
[1730617933412,8.20805142,163.78,163.72,29.58585142]
[1730617933613,8.20805142,163.79,163.73,8.20805142]
[1730617934023,8.20805142,163.78,163.73,8.20805142]
[1730617934722,8.20805142,163.8,163.74,29.58335142]
[1730617934907,8.20805142,163.8,163.75,8.20805142]
[1730617935829,8.20805142,163.8,163.74,29.58335142]
[1730617936013,8.20805142,163.79,163.74,29.58335142]
[1730617936404,8.20805142,163.78,163.74,21.3753]
[1730617941115,8.20805142,163.78,163.74,15.2681]
[1730617943911,8.20805142,163.77,163.74,15.2681]
[1730617944929,8.20805142,163.78,163.74,15.2681]
[1730617946322,8.20805142,163.79,163.74,15.2681]
[1730617946627,8.20805142,163.78,163.74,15.2681]
[1730617946836,8.20805142,163.78,163.74,21.3753]
[1730617951220,8.20805142,163.79,163.74,21.3753]
[1730617954036,8.20805142,163.8,163.74,29.58335142]
[1730617955035,8.20805142,163.79,163.74,21.3753]
[1730617957838,8.20805142,163.79,163.74,29.58335142]
[1730617961734,8.20805142,163.8,163.74,29.58335142]
[1730617963639,8.20805142,163.8,163.76,21.3726]
[1730617964045,8.20805142,163.82,163.77,8.20805142]
[1730617964824,24.38445142,163.83,163.77,8.20805142]
[1730617965027,8.20805142,163.83,163.77,8.20805142]
[1730617965650,8.20805142,163.83,163.79,15.2634]
[1730617965826,8.20805142,163.82,163.79,15.2634]
[1730617968347,23.77645142,163.87,163.81,8.20805142]
[1730617968539,8.20805142,163.89,163.83,8.20805142]
[1730617968738,8.20805142,163.9,163.85,8.20805142]
[1730617968952,30.18038522,163.91,163.85,8.20805142]
[1730617969141,21.9723338,163.91,163.82,23.776884]
[1730617969331,21.9723338,163.91,163.83,20.0]
[1730617969653,8.20805142,163.89,163.84,21.3622]
[1730617970226,8.20805142,163.88,163.84,21.3622]
[1730617970739,8.20805142,163.9,163.84,29.57025142]
[1730617971541,8.20805142,163.9,163.84,8.20805142]
[1730617972959,8.20805142,163.9,163.85,8.20805142]
[1730617973629,8.20805142,163.9,163.83,20.0]
[1730617973630,8.20805142,163.89,163.84,8.20805142]
[1730617973933,8.20805142,163.89,163.83,28.20805142]
[1730617975845,8.20805142,163.9,163.84,8.20805142]
[1730617977643,8.20805142,163.89,163.84,8.20805142]
[1730617978149,8.20805142,163.9,163.85,8.20805142]
[1730617980564,8.20805142,163.89,163.84,8.20805142]
[1730617981361,24.07928522,163.91,163.86,8.20805142]
[1730617981670,15.8712338,163.91,163.86,8.20805142]
[1730617982850,0.3028338,163.91,163.88,8.20805142]
[1730617983164,0.3028338,163.91,163.89,8.20805142]
[1730617985464,0.3028338,163.91,163.9,8.20805142]
[1730617993045,0.3028338,163.91,163.9,31.98493542]
[1730617993573,0.3028338,163.91,163.9,8.20805142]
[1730617993864,0.3028338,163.91,163.89,8.20805142]
[1730617994671,0.3028338,163.91,163.9,8.20805142]
[1730617998160,0.3028338,163.91,163.9,31.98493542]
[1730617998560,0.3028338,163.91,163.9,51.98493542]
[1730617999311,0.3028338,163.99,163.92,20.0]
[1730617999574,0.3028338,163.99,163.97,8.20805142]
[1730618000251,0.3028338,163.99,163.98,8.20805142]
[1730618001481,0.3028338,163.99,163.97,8.20805142]
[1730618010157,0.3028338,163.99,163.98,8.20805142]
[1730618011469,0.3028338,163.99,163.98,28.20805142]
[1730618012476,0.3028338,163.99,163.98,51.98493542]
[1730618013678,0.3028338,163.99,163.98,28.20805142]
[1730618015381,0.3028338,163.99,163.98,20.0]
[1730618017277,0.3028338,163.99,163.98,8.20805142]
[1730618017590,0.3028338,163.99,163.95,20.0]
[1730618017591,0.3028338,163.99,163.97,8.20805142]
[1730618018988,0.3028338,163.99,163.98,8.20805142]
[1730618019870,0.3028338,163.99,163.97,28.20805142]
[1730618020587,0.3028338,163.99,163.96,8.20805142]
[1730618020891,0.3028338,163.99,163.96,20.0]
[1730618021278,0.3028338,163.99,163.95,8.20805142]
[1730618021673,8.51088522,163.99,163.94,8.20805142]
[1730618021868,0.3028338,163.99,163.95,8.20805142]
[1730618022969,0.3028338,163.99,163.96,8.20805142]
[1730618025879,0.3028338,163.99,163.95,8.20805142]
[1730618030196,0.3028338,163.99,163.93,28.20805142]
[1730618030197,8.20805142,163.98,163.93,28.20805142]
[1730618030376,8.20805142,163.98,163.89,8.20805142]
[1730618030377,8.20805142,163.95,163.89,8.20805142]
[1730618031795,8.20805142,163.95,163.9,23.776884]
[1730618032486,8.20805142,163.95,163.89,8.20805142]
[1730618032671,8.20805142,163.95,163.87,17.48942998]
[1730618032672,8.20805142,163.94,163.88,8.20805142]
[1730618032874,8.20805142,163.93,163.88,8.20805142]
[1730618034497,8.20805142,163.93,163.88,10.37665346]
[1730618034890,8.20805142,163.94,163.89,8.20805142]
[1730618043197,8.20805142,163.96,163.9,8.20805142]
[1730618043418,8.20805142,163.97,163.92,8.20805142]
[1730618043890,8.20805142,163.96,163.91,8.20805142]
[1730618044688,8.20805142,163.95,163.9,2.17614367]
[1730618044897,8.20805142,163.95,163.89,10.38419509]
[1730618045511,8.20805142,163.95,163.9,2.17614367]
[1730618046000,16.0381,163.98,163.89,2.17614367]
[1730618046001,8.20805142,163.92,163.89,2.17614367]
[1730618046796,8.20805142,163.93,163.89,2.17614367]
[1730618047681,8.20805142,163.93,163.88,28.20805142]
[1730618047885,8.20805142,163.93,163.89,2.17915415]
[1730618048197,8.20805142,163.92,163.89,2.17915415]
[1730618048584,8.20805142,163.92,163.88,2.17915415]
[1730618048795,8.20805142,163.92,163.87,8.20805142]
[1730618051309,8.20805142,163.91,163.86,8.20805142]
[1730618052497,8.20805142,163.9,163.85,31.98493542]
[1730618052695,15.4394,163.92,163.83,8.20805142]
[1730618052696,8.20805142,163.88,163.83,8.20805142]
[1730618052900,8.20805142,163.86,163.81,8.20805142]
[1730618053095,8.20805142,163.85,163.8,10.38595299]
[1730618053317,6.4594,163.91,163.79,6.3732]
[1730618053318,8.20805142,163.86,163.81,8.20805142]
[1730618053497,8.20805142,163.89,163.84,8.20805142]
[1730618054710,8.20805142,163.9,163.84,8.20805142]
[1730618054917,8.20805142,163.88,163.83,8.20805142]
[1730618055219,8.20805142,163.87,163.83,20.0]
[1730618057333,8.20805142,163.86,163.81,8.20805142]
[1730618057624,8.20805142,163.85,163.8,10.38153561]
[1730618058216,6.4594,163.91,163.82,8.20805142]
[1730618058217,8.20805142,163.87,163.82,8.20805142]
[1730618058732,8.20805142,163.86,163.81,8.20805142]
[1730618064912,8.20805142,163.87,163.81,8.20805142]
[1730618065111,8.20805142,163.86,163.81,8.20805142]
[1730618066923,8.20805142,163.87,163.82,8.20805142]
[1730618068033,8.20805142,163.89,163.83,8.20805142]
[1730618068227,8.20805142,163.89,163.84,8.20805142]
[1730618073626,8.20805142,163.9,163.84,8.20805142]
[1730618074444,14.66745142,163.91,163.85,8.20805142]
[1730618074628,8.20805142,163.91,163.85,8.20805142]
[1730618076232,8.20805142,163.9,163.84,8.20805142]
[1730618079026,8.20805142,163.9,163.85,8.20805142]
[1730618081249,8.20805142,163.9,163.84,8.20805142]
[1730618082158,8.20805142,163.89,163.84,8.20805142]
[1730618082347,8.20805142,163.89,163.83,8.20805142]
[1730618082739,8.20805142,163.87,163.81,8.20805142]
[1730618082943,8.20805142,163.86,163.81,8.20805142]
[1730618083361,8.20805142,163.87,163.81,8.20805142]
[1730618087460,8.20805142,163.86,163.81,8.20805142]
[1730618089163,8.20805142,163.88,163.82,8.20805142]
[1730618089952,8.20805142,163.89,163.84,8.20805142]
[1730618090463,15.4394,163.92,163.84,8.20805142]
[1730618090664,8.20805142,163.9,163.85,8.20805142]
[1730618090857,8.20805142,163.9,163.84,8.20805142]
[1730618093275,8.20805142,163.9,163.85,8.20805142]
[1730618095059,8.20805142,163.9,163.84,10.39035818]
[1730618095258,8.20805142,163.9,163.84,8.20805142]
[1730618095462,8.20805142,163.89,163.84,8.20805142]
[1730618095669,8.20805142,163.89,163.84,10.39035818]
[1730618095872,8.20805142,163.89,163.84,8.20805142]
[1730618096052,8.20805142,163.89,163.84,10.39035818]
[1730618096253,8.20805142,163.89,163.84,8.20805142]
[1730618096474,8.20805142,163.89,163.84,10.39035818]
[1730618096767,8.20805142,163.89,163.84,8.20805142]
[1730618096975,8.20805142,163.89,163.84,10.39035818]
[1730618097150,8.20805142,163.89,163.84,8.20805142]
[1730618097350,8.20805142,163.89,163.85,2.18230676]
[1730618098468,8.20805142,163.9,163.85,2.18230676]
[1730618100473,15.4394,163.92,163.87,8.20805142]
[1730618102966,15.4394,163.92,163.88,8.20805142]
[1730618103174,8.20805142,163.93,163.88,8.20805142]
[1730618103675,8.20805142,163.93,163.87,8.20805142]
[1730618103897,6.5228,163.95,163.86,22.18230676]
[1730618103898,8.20805142,163.91,163.86,22.18230676]
[1730618104169,8.20805142,163.91,163.87,2.18230676]
[1730618104556,8.20805142,163.91,163.86,20.0]
[1730618104787,8.20805142,163.91,163.87,2.18336527]
[1730618107064,8.20805142,163.91,163.86,10.39141669]
[1730618107250,8.20805142,163.92,163.86,8.20805142]
[1730618107456,8.20805142,163.92,163.86,10.39141669]
[1730618107681,8.20805142,163.92,163.86,8.20805142]
[1730618107876,8.20805142,163.9,163.86,2.18336527]
[1730618108175,8.20805142,163.9,163.85,22.18336527]
[1730618108357,8.20805142,163.9,163.86,2.18336527]
[1730618109067,8.20805142,163.88,163.86,2.18336527]
[1730618109377,23.776884,163.94,163.83,8.20805142]
[1730618109378,8.20805142,163.89,163.84,10.39141669]
[1730618109575,8.20805142,163.9,163.85,2.18336527]
[1730618109772,8.20805142,163.87,163.85,2.18336527]
[1730618109981,8.20805142,163.86,163.83,22.18336527]
[1730618110280,8.20805142,163.85,163.81,3.49375055]
[1730618110575,8.20805142,163.85,163.82,2.18515802]
[1730618110758,8.20805142,163.85,163.76,6.93973613]
[1730618110759,8.20805142,163.85,163.81,2.18515802]
[1730618110966,8.20805142,163.85,163.82,2.18515802]
[1730618111279,8.20805142,163.85,163.8,2.18515802]
[1730618111473,8.20805142,163.85,163.81,2.18515802]
[1730618111657,8.20805142,163.84,163.82,2.18515802]
[1730618111984,8.20805142,163.84,163.8,2.18474421]
[1730618112283,8.20805142,163.85,163.81,2.18474421]
[1730618112661,8.20805142,163.87,163.82,10.39279563]
[1730618112853,6.3111,163.9,163.83,8.20805142]
[1730618112854,8.20805142,163.89,163.83,8.20805142]
[1730618113071,8.20805142,163.88,163.84,2.18474421]
[1730618113271,8.20805142,163.88,163.83,8.20805142]
[1730618113954,8.20805142,163.88,163.83,10.39279563]
[1730618114159,8.20805142,163.88,163.83,8.20805142]
[1730618114370,8.20805142,163.89,163.83,8.20805142]
[1730618114679,8.20805142,163.9,163.84,10.39279563]
[1730618114875,8.20805142,163.9,163.85,2.18474421]
[1730618115081,8.20805142,163.9,163.85,10.39279563]
[1730618115263,8.20805142,163.9,163.85,8.20805142]
[1730618115877,8.20805142,163.9,163.85,10.3920328]
[1730618116071,8.20805142,163.9,163.85,8.20805142]
[1730618116668,8.20805142,163.9,163.85,10.3920328]
[1730618116871,8.20805142,163.9,163.85,8.20805142]
[1730618117563,8.20805142,163.9,163.85,10.3920328]
[1730618117764,8.20805142,163.9,163.85,8.20805142]
[1730618118462,8.20805142,163.9,163.85,10.3920328]
[1730618118668,8.20805142,163.9,163.85,8.20805142]
[1730618119286,8.20805142,163.9,163.85,10.3920328]
[1730618119485,8.20805142,163.9,163.85,8.20805142]
[1730618120167,8.20805142,163.9,163.85,10.3920328]
[1730618120376,8.20805142,163.9,163.85,8.20805142]
[1730618120575,24.21355142,163.91,163.85,8.20805142]
[1730618120779,16.0055,163.91,163.86,8.20805142]
[1730618121287,16.0055,163.91,163.86,10.3920328]
[1730618121479,8.20805142,163.92,163.86,8.20805142]
[1730618121668,8.20805142,163.92,163.87,8.20805142]
[1730618122079,8.20805142,163.94,163.88,8.20805142]
[1730618122278,8.20805142,163.94,163.89,8.20805142]
[1730618122585,24.21355142,163.95,163.89,8.20805142]
[1730618123799,8.20805142,163.94,163.89,8.20805142]
[1730618124164,8.20805142,163.94,163.88,8.20805142]
[1730618127988,8.20805142,163.94,163.89,8.20805142]
[1730618128291,24.21355142,163.95,163.89,8.20805142]
[1730618128492,8.20805142,163.96,163.9,8.20805142]
[1730618128687,8.20805142,163.97,163.91,8.20805142]
[1730618129075,8.20805142,163.97,163.92,8.20805142]
[1730618129386,8.20805142,163.98,163.93,8.20805142]
[1730618130293,8.20805142,163.95,163.91,20.0]
[1730618131184,8.20805142,163.96,163.91,8.20805142]
[1730618132086,8.20805142,163.97,163.92,8.20805142]
[1730618132584,8.20805142,163.98,163.92,8.20805142]
[1730618132783,8.20805142,163.97,163.92,8.20805142]
[1730618134423,8.20805142,163.97,163.91,8.20805142]
[1730618134582,8.20805142,163.96,163.91,8.20805142]
[1730618135777,8.20805142,163.95,163.9,8.20805142]
[1730618136075,8.20805142,163.95,163.91,20.0]
[1730618136481,8.20805142,163.96,163.91,8.20805142]
[1730618137277,8.20805142,163.97,163.91,8.20805142]
[1730618137996,8.20805142,163.97,163.92,8.20805142]
[1730618139500,8.20805142,163.98,163.92,8.20805142]
[1730618139997,8.20805142,163.97,163.92,8.20805142]
[1730618140603,8.20805142,163.98,163.92,8.20805142]
[1730618143001,8.20805142,163.96,163.91,20.0]
[1730618143421,8.20805142,163.96,163.91,28.20805142]
[1730618143705,8.20805142,163.97,163.92,8.20805142]
[1730618145000,8.20805142,163.98,163.93,8.20805142]
[1730618145202,0.3028338,163.99,163.95,8.20805142]
[1730618145985,0.3028338,163.99,163.96,20.0]
[1730618146505,0.3028338,163.99,163.96,28.20805142]
[1730618148090,0.3028338,163.99,163.97,8.20805142]
[1730618149216,0.3028338,163.99,163.98,8.20805142]
[1730618152105,0.3028338,163.99,163.98,31.98493542]
[1730618153508,0.3028338,163.99,163.98,51.98493542]
[1730618155610,0.3028338,163.99,163.97,28.20805142]
[1730618157115,0.3028338,163.99,163.98,28.20805142]
[1730618158714,0.3028338,163.99,163.97,8.20805142]
[1730618158895,0.3028338,163.99,163.97,20.0]
[1730618159416,0.3028338,163.99,163.96,8.20805142]
[1730618160004,0.3028338,163.99,163.97,8.20805142]
[1730618160806,0.3028338,163.99,163.96,8.20805142]
[1730618161207,0.3028338,163.99,163.97,20.0]
[1730618161518,0.3028338,163.99,163.97,28.20805142]
[1730618161719,0.3028338,163.99,163.98,8.20805142]
[1730618161904,0.3028338,163.99,163.97,8.20805142]
[1730618167509,0.3028338,163.99,163.96,8.20805142]
[1730618167828,0.3028338,163.99,163.97,20.0]
[1730618168411,0.3028338,163.99,163.98,6.0983]
[1730618169611,0.3028338,163.99,163.97,21.3448]
[1730618170523,0.3028338,163.99,163.97,15.2462]
[1730618172122,8.51088522,163.99,163.97,15.2462]
[1730618173025,8.51088522,163.99,163.95,6.0994]
[1730618173441,8.20805142,163.98,163.95,6.0994]
[1730618174105,8.20805142,163.98,163.95,15.2485]
[1730618175419,14.30645142,163.98,163.93,20.0]
[1730618175629,8.20805142,163.97,163.93,20.0]
[1730618175824,8.20805142,163.98,163.92,29.55965142]
[1730618176019,8.20805142,163.98,163.93,8.20805142]
[1730618176812,8.20805142,163.98,163.94,21.3491]
[1730618177833,8.20805142,163.97,163.94,21.3491]
[1730618178021,8.20805142,163.98,163.94,21.3491]
[1730618178734,8.20805142,163.97,163.94,21.3491]
[1730618178911,8.20805142,163.98,163.94,15.2494]
[1730618182511,8.20805142,163.97,163.94,15.2494]
[1730618182720,8.20805142,163.96,163.94,15.2494]
[1730618182924,8.20805142,163.98,163.94,15.2494]
[1730618186319,8.51088522,163.99,163.94,15.2494]
[1730618186737,8.20805142,163.98,163.94,15.2494]
[1730618187614,8.20805142,163.98,163.94,21.3491]
[1730618187939,8.20805142,163.97,163.94,21.3491]
[1730618188816,8.20805142,163.98,163.94,21.3491]
[1730618190436,8.20805142,163.98,163.94,15.2494]
[1730618194744,8.51088522,163.99,163.93,8.20805142]
[1730618196544,8.51088522,163.99,163.94,21.3491]
[1730618196730,8.20805142,163.98,163.94,21.3491]
[1730618197238,0.3028338,163.99,163.94,21.3491]
[1730618197239,8.51088522,163.99,163.94,21.3491]
[1730618198935,0.3028338,163.99,163.94,29.55715142]
[1730618199842,0.3028338,163.99,163.95,10.39088034]
[1730618200142,0.3028338,163.99,163.95,8.20805142]
[1730618200848,0.3028338,163.99,163.96,21.3466]
[1730618202145,0.3028338,163.99,163.96,29.55465142]
[1730618206239,0.3028338,163.99,163.96,15.2476]
[1730618207023,0.3028338,163.99,163.96,23.45565142]
[1730618207218,0.3028338,163.99,163.96,29.55465142]
[1730618213340,8.20805142,163.97,163.92,15.2506]
[1730618213652,8.20805142,163.93,163.87,11.70474509]
[1730618213852,8.20805142,163.93,163.88,23.54223035]
[1730618214040,8.20805142,163.93,163.89,2.18573035]
[1730618214237,8.20805142,163.93,163.9,2.18584805]
[1730618214441,8.20805142,163.94,163.89,2.18584805]
[1730618214925,8.20805142,163.94,163.9,21.3544]
[1730618216228,8.20805142,163.93,163.9,15.2532]
[1730618216427,8.20805142,163.92,163.9,15.2532]
[1730618216628,8.20805142,163.91,163.88,6.1018]
[1730618216849,8.20805142,163.91,163.88,8.28739004]
[1730618217053,8.20805142,163.9,163.88,8.28739004]
[1730618217643,21.9488,163.93,163.87,15.2558]
[1730618217644,8.20805142,163.89,163.87,15.2558]
[1730618221453,8.20805142,163.89,163.84,21.3622]
[1730618221656,8.20805142,163.89,163.85,20.0]
[1730618221857,8.20805142,163.88,163.85,20.0]
[1730618222238,8.20805142,163.87,163.84,21.3622]
[1730618227341,8.20805142,163.88,163.84,21.3622]
[1730618229852,15.8484,163.93,163.84,29.57025142]
[1730618229853,8.20805142,163.89,163.84,29.57025142]
[1730618230059,8.20805142,163.9,163.85,8.20805142]
[1730618230554,8.20805142,163.88,163.84,21.3622]
[1730618230755,8.20805142,163.86,163.84,21.3622]
[1730618233546,8.20805142,163.85,163.84,15.2587]
[1730618234069,8.20805142,163.85,163.83,6.97467061]
[1730618234745,8.20805142,163.84,163.83,0.87097061]
[1730618237052,8.20805142,163.86,163.83,6.97477061]
[1730618237956,8.20805142,163.85,163.83,6.97477061]
[1730618239846,8.20805142,163.87,163.83,22.23447061]
[1730618242773,24.58425142,163.88,163.83,22.23447061]
[1730618242963,8.20805142,163.88,163.83,30.44252203]
[1730618243468,8.20805142,163.88,163.83,22.23447061]
[1730618245448,8.20805142,163.87,163.83,22.23447061]
[1730618248669,8.20805142,163.88,163.83,22.23447061]
[1730618251559,8.20805142,163.88,163.83,30.44252203]
[1730618252570,8.20805142,163.9,163.85,8.20805142]
[1730618252964,8.20805142,163.91,163.85,8.20805142]
[1730618253161,8.20805142,163.9,163.85,8.20805142]
[1730618253568,8.20805142,163.9,163.86,21.3596]
[1730618254276,8.20805142,163.91,163.86,21.3596]
[1730618254491,8.20805142,163.93,163.87,8.20805142]
[1730618254653,8.20805142,163.94,163.89,8.20805142]
[1730618255867,8.20805142,163.94,163.9,21.3544]
[1730618257759,8.20805142,163.92,163.87,8.20805142]
[1730618257959,8.20805142,163.92,163.88,20.0]
[1730618258477,8.20805142,163.93,163.88,28.20805142]
[1730618258666,8.20805142,163.93,163.88,20.0]
[1730618258871,8.20805142,163.95,163.89,8.20805142]
[1730618259577,8.20805142,163.94,163.89,8.20805142]
[1730618260574,8.20805142,163.94,163.9,21.3544]
[1730618260877,8.20805142,163.95,163.9,29.56245142]
[1730618261060,8.20805142,163.96,163.9,29.56245142]
[1730618261259,8.20805142,163.97,163.91,8.20805142]
[1730618261673,8.20805142,163.96,163.91,8.20805142]
[1730618263179,8.20805142,163.96,163.92,21.3518]
[1730618263857,8.20805142,163.97,163.92,29.55985142]
[1730618264058,8.20805142,163.98,163.93,8.20805142]
[1730618264259,8.20805142,163.98,163.92,29.55985142]
[1730618265084,8.20805142,163.97,163.92,29.55985142]
[1730618265374,8.20805142,163.97,163.92,21.3518]
[1730618267180,8.20805142,163.97,163.92,8.20805142]
[1730618267387,8.20805142,163.98,163.92,8.20805142]
[1730618267884,8.20805142,163.98,163.93,8.20805142]
[1730618268280,8.20805142,163.98,163.92,8.20805142]
[1730618268582,8.20805142,163.97,163.92,8.20805142]
[1730618268771,8.20805142,163.98,163.92,8.20805142]
[1730618268973,8.20805142,163.97,163.93,21.3505]
[1730618270087,8.20805142,163.96,163.93,15.2504]
[1730618270288,8.20805142,163.95,163.93,15.2504]
[1730618270586,8.20805142,163.94,163.93,15.2504]
[1730618270958,8.20805142,163.95,163.93,15.2504]
[1730618271157,8.20805142,163.94,163.89,8.20805142]
[1730618271365,8.20805142,163.94,163.9,21.3544]
[1730618271989,8.20805142,163.93,163.9,15.2532]
[1730618272159,8.20805142,163.92,163.88,6.1018]
[1730618272364,15.9709,163.94,163.86,23.46445142]
[1730618272365,8.20805142,163.89,163.86,21.3591]
[1730618272580,8.20805142,163.88,163.86,15.2564]
[1730618272872,8.20805142,163.9,163.86,21.3591]
[1730618273267,8.20805142,163.9,163.86,15.2564]
[1730618274370,8.20805142,163.89,163.86,15.2564]
[1730618277589,8.20805142,163.91,163.86,15.2564]
[1730618279094,8.20805142,163.91,163.86,21.3591]
[1730618280098,8.20805142,163.9,163.86,21.3591]
[1730618281305,8.20805142,163.9,163.86,15.2564]
[1730618283600,8.20805142,163.93,163.87,8.20805142]
[1730618285602,8.20805142,163.93,163.88,21.357]
[1730618292413,8.20805142,163.92,163.88,21.357]
[1730618292708,15.9709,163.94,163.86,8.20805142]
[1730618292709,8.20805142,163.89,163.86,6.1027]
[1730618293286,8.20805142,163.89,163.85,15.2574]
[1730618294111,8.20805142,163.9,163.85,15.2574]
[1730618295394,8.20805142,163.9,163.85,21.3605]
[1730618295889,8.20805142,163.91,163.85,29.56855142]
[1730618296206,8.20805142,163.92,163.86,8.20805142]
[1730618296402,8.20805142,163.92,163.86,10.39283682]
[1730618297091,8.20805142,163.92,163.87,21.3582]
[1730618297287,8.20805142,163.92,163.87,29.56625142]
[1730618297493,24.17895142,163.94,163.89,8.20805142]
[1730618298122,15.9709,163.94,163.89,8.20805142]
[1730618298311,24.17895142,163.94,163.88,30.39332189]
[1730618298509,8.20805142,163.93,163.89,2.18527047]
[1730618298818,8.20805142,163.92,163.87,29.56625142]
[1730618299117,8.20805142,163.92,163.88,2.18626512]
[1730618299411,8.20805142,163.92,163.89,6.1016]
[1730618299620,8.20805142,163.93,163.89,6.1016]
[1730618299825,8.20805142,163.93,163.89,21.3557]
[1730618302299,8.20805142,163.93,163.89,15.2541]
[1730618303521,8.20805142,163.92,163.89,15.2541]
[1730618304094,15.9709,163.94,163.89,15.2541]
[1730618304095,8.20805142,163.93,163.89,15.2541]
[1730618304606,24.17895142,163.94,163.89,15.2541]
[1730618304799,24.17895142,163.94,163.89,23.46215142]
[1730618304999,8.20805142,163.94,163.89,23.46215142]
[1730618305198,8.20805142,163.95,163.9,2.18686181]
[1730618305922,8.20805142,163.95,163.91,21.3531]
[1730618307312,8.20805142,163.97,163.91,29.56115142]
[1730618308626,8.20805142,163.97,163.92,8.20805142]
[1730618309703,8.20805142,163.97,163.93,21.3505]
[1730618312641,23.77345142,163.98,163.93,21.3505]
[1730618312928,8.20805142,163.97,163.93,21.3505]
[1730618316810,8.20805142,163.97,163.93,15.2504]
[1730618317628,8.20805142,163.95,163.93,15.2504]
[1730618318531,8.20805142,163.94,163.9,21.3544]
[1730618319718,8.20805142,163.94,163.9,15.2532]
[1730618320230,8.20805142,163.96,163.9,23.46125142]
[1730618320416,23.77345142,163.98,163.92,8.20805142]
[1730618321836,8.20805142,163.97,163.93,21.3505]
[1730618324616,8.20805142,163.98,163.93,21.3505]
[1730618324816,8.20805142,163.98,163.93,23.45845142]
[1730618326833,8.20805142,163.98,163.93,29.55855142]
[1730618327143,8.51088522,163.99,163.93,29.55855142]
[1730618327646,8.20805142,163.98,163.93,29.55855142]